bitfinex/quotes_SOLUSD_20260224
["timestamp","ask_amount","ask_price","bid_price","bid_amount"]
[1771891201568,1.08815087,78.02,77.979,0.92919355]
[1771891201768,1.08815087,78.02,77.94,5.64518502]
[1771891202071,1.08815087,78.02,77.929,9.27655402]
[1771891202072,1.08815087,78.02,77.968,5.36086188]
[1771891202265,1.08815087,78.02,77.969,0.92919355]
[1771891203069,1.08815087,78.02,77.977,0.92919355]
[1771891203251,1.08815087,78.02,77.979,0.92919355]
[1771891204559,1.08815087,78.02,77.989,0.92919355]
[1771891205463,12.81246396,78.049,77.999,0.92919355]
[1771891205663,12.81246396,78.049,78.01,0.92919355]
[1771891206066,1e-08,78.05,78.014,0.92919355]
[1771891206250,1e-08,78.06,78.035,0.92919355]
[1771891206454,1e-08,78.06,78.039,0.92919355]
[1771891207466,12.80617485,78.088,78.038,0.92919355]
[1771891207467,1.09909399,78.08,78.038,0.92919355]
[1771891207677,1.09909399,78.08,78.04,44.84879548]
[1771891207879,1.09909399,78.08,78.041,0.92919355]
[1771891208076,0.89909399,78.078,78.04,12.81394156]
[1771891208577,0.89909399,78.078,78.041,0.92919355]
[1771891209585,0.89909399,78.076,78.042,12.81361318]
[1771891209794,0.2,78.08,78.045,0.92919355]
[1771891210083,0.2,78.1,78.059,0.92919355]
[1771891210761,0.89909399,78.089,78.042,44.84764613]
[1771891210974,0.89909399,78.089,78.043,5.64518502]
[1771891211290,0.89909399,78.088,78.043,5.64518502]
[1771891212894,32.01382003,78.092,78.048,0.92919355]
[1771891212895,0.89909399,78.086,78.048,0.92919355]
[1771891213594,0.89909399,78.086,78.057,0.32424838]
[1771891215794,0.89909399,78.084,78.05,0.92919355]
[1771891218098,0.84355556,78.082,78.051,12.81213565]
[1771891218699,0.84355556,78.082,78.052,0.88015171]
[1771891219399,0.2,78.09,78.058,0.88015171]
[1771891219699,0.2,78.09,78.068,0.88015171]
[1771891220395,0.2,78.09,78.069,12.80918162]
[1771891220601,0.2,78.09,78.07,0.88015171]
[1771891222419,0.2,78.09,78.072,0.82593989]
[1771891223678,1.02915602,78.09,78.072,0.82593989]
[1771891224577,1.02915602,78.09,78.073,12.80852535]
[1771891225295,1.02915602,78.09,78.073,13.63446524]
[1771891226996,1.02915602,78.09,78.074,0.82593989]
[1771891227499,1.02915602,78.09,78.061,45.12105338]
[1771891227702,1.02915602,78.09,78.062,0.82593989]
[1771891230102,0.82915602,78.113,78.069,0.14216157]
[1771891230301,51.17704648,78.161,78.075,5.36086188]
[1771891230302,0.82915602,78.111,78.075,5.36086188]
[1771891230606,0.82915602,78.111,78.078,0.82593989]
[1771891232091,13.62850069,78.129,78.08,0.82593989]
[1771891232287,0.82915602,78.128,78.08,0.82593989]
[1771891232691,0.82915602,78.128,78.088,0.82593989]
[1771891235313,0.82915602,78.126,78.09,0.82593989]
[1771891236705,0.82915602,78.126,78.091,44.81950544]
[1771891236909,0.82915602,78.126,78.092,0.82593989]
[1771891237305,0.82915602,78.124,78.087,12.80611563]
[1771891237510,0.56027315,78.12,78.072,0.82593989]
[1771891238012,0.56027315,78.12,78.074,0.82593989]
[1771891239111,0.54523243,78.118,78.076,0.82593989]
[1771891240609,0.54523243,78.118,78.078,0.82593989]
[1771891240787,0.73053525,78.13,78.088,0.82593989]
[1771891240993,0.53053525,78.129,78.088,0.82593989]
[1771891241193,0.53053525,78.128,78.09,0.82593989]
[1771891243515,0.51617376,78.127,78.092,0.82593989]
[1771891245514,0.2,78.13,78.1,0.82593989]
[1771891247197,0.2,78.15,78.112,0.82593989]
[1771891247198,1e-08,78.14,78.112,0.82593989]
[1771891247405,1e-08,78.15,78.128,0.82593989]
[1771891247715,0.68842732,78.17,78.131,0.82593989]
[1771891248102,13.48108029,78.17,78.131,0.82593989]
[1771891248415,0.47502757,78.169,78.131,0.82593989]
[1771891250999,12.79295875,78.168,78.132,44.79598627]
[1771891251207,0.4554996,78.167,78.133,0.77194911]
[1771891252416,0.2,78.17,78.133,0.77194911]
[1771891252621,0.64913923,78.17,78.133,0.77194911]
[1771891252919,0.44285192,78.169,78.133,0.77194911]
[1771891253118,0.44285192,78.169,78.134,44.79483962]
[1771891253316,0.44285192,78.169,78.135,0.77194911]
[1771891253823,0.2,78.17,78.139,0.77194911]
[1771891255623,31.96513795,78.211,78.142,5.64518502]
[1771891255814,0.42441997,78.198,78.145,0.77194911]
[1771891256014,0.42441997,78.198,78.142,0.28432314]
[1771891256015,0.42441997,78.198,78.157,0.77194911]
[1771891257118,0.41841658,78.211,78.166,0.28432314]
[1771891257419,0.41841658,78.223,78.185,0.77194911]
[1771891257625,0.41841658,78.232,78.187,0.77194911]
[1771891258406,0.41248215,78.24,78.195,0.77194911]
[1771891259525,0.41248215,78.24,78.197,0.77194911]
[1771891259826,1e-08,78.234,78.207,0.77194911]
[1771891260024,1e-08,78.234,78.209,0.77194911]
[1771891260237,0.40081699,78.233,78.198,12.78805084]
[1771891260532,0.40081699,78.232,78.199,0.77194911]
[1771891261724,0.3950847,78.23,78.19,12.78935925]
[1771891262428,0.3950847,78.23,78.191,0.77194911]
[1771891262725,0.3838169,78.228,78.193,0.77194911]
[1771891263020,0.3838169,78.226,78.193,0.77194911]
[1771891263510,0.3838169,78.232,78.193,0.77194911]
[1771891263706,0.37827988,78.254,78.199,0.77194911]
[1771891263907,0.37827988,78.261,78.217,0.77194911]
[1771891264611,13.15611088,78.261,78.217,0.77194911]
[1771891265210,0.37280646,78.27,78.223,0.77194911]
[1771891265406,12.77645044,78.269,78.227,0.77194911]
[1771891265621,0.37280646,78.268,78.227,0.77194911]
[1771891267332,3.69383402,78.286,78.219,0.77194911]
[1771891267333,0.36204749,78.266,78.219,0.77194911]
[1771891267928,0.35676051,78.258,78.204,0.77194911]
[1771891268113,0.35676051,78.25,78.204,0.77194911]
[1771891270321,0.34636803,78.248,78.206,0.77194911]
[1771891272837,0.33122268,78.246,78.208,0.77194911]
[1771891276122,0.31659323,78.244,78.21,0.77194911]
[1771891276444,0.31659323,78.24,78.193,31.97179356]
[1771891276733,0.31659323,78.24,78.195,0.77194911]
[1771891278341,0.30246211,78.238,78.197,0.63626193]
[1771891278914,0.28432314,78.235,78.182,0.63626193]
[1771891279120,0.29785953,78.23,78.182,0.63626193]
[1771891280441,0.29330981,78.228,78.184,0.63626193]
[1771891282840,0.27562756,78.226,78.186,0.64189513]
[1771891285445,0.26708816,78.224,78.188,0.64189513]
[1771891288142,0.25464337,78.222,78.188,0.64189513]
[1771891288624,0.25464337,78.22,78.158,0.64189513]
[1771891288827,0.25464337,78.22,78.166,0.64189513]
[1771891289538,0.25464337,78.22,78.079,5.36086188]
[1771891289539,0.28432314,78.215,78.16,0.64189513]
[1771891289740,0.25059003,78.21,78.16,0.64189513]
[1771891290628,0.24658325,78.208,78.162,0.64189513]
[1771891291525,0.24262249,78.221,78.166,0.64189513]
[1771891293450,0.23483693,78.209,78.18,5.53588659]
[1771891294351,0.23483693,78.209,78.178,0.64189513]
[1771891294948,18.32034069,78.22,78.181,0.64189513]
[1771891295253,12.78134945,78.239,78.203,0.64189513]
[1771891295438,0.22722919,78.238,78.21,6.17778172]
[1771891295946,0.22722919,78.238,78.211,0.64189513]
[1771891296149,0.22349073,78.246,78.221,0.64189513]
[1771891297235,13.00369674,78.246,78.221,0.64189513]
[1771891297437,0.21979522,78.245,78.214,0.64189513]
[1771891297633,0.21979522,78.239,78.21,18.32181896]
[1771891297837,0.21979522,78.239,78.205,12.78674535]
[1771891298156,44.73072105,78.246,78.192,0.64189513]
[1771891298157,0.21614214,78.229,78.192,0.64189513]
[1771891298455,0.21614214,78.219,78.182,0.64189513]
[1771891298858,0.21253103,78.209,78.182,0.64189513]
[1771891299447,12.78641571,78.208,78.183,12.79050432]
[1771891300154,0.2089614,78.207,78.183,12.79050432]
[1771891301342,12.7867427,78.206,78.183,12.79050432]
[1771891301554,0.20543276,78.205,78.183,12.79050432]
[1771891301856,0.20543276,78.205,78.175,0.64189513]
[1771891301857,0.20543276,78.205,78.178,12.79120399]
[1771891302059,0.20543276,78.205,78.178,13.43309912]
[1771891302255,0.20543276,78.205,78.179,0.64189513]
[1771891302944,0.20543276,78.205,78.178,12.79120399]
[1771891302945,0.20543276,78.205,78.18,12.99801127]
[1771891303444,0.20543276,78.205,78.181,12.79083153]
[1771891305052,0.20543276,78.205,78.181,13.43272666]
[1771891305358,12.78706971,78.204,78.182,0.64189513]
[1771891305760,0.20543276,78.205,78.183,12.79050432]
[1771891306263,0.1883883,78.209,78.179,12.79101251]
[1771891306441,0.1883883,78.199,78.17,12.35611614]
[1771891306640,0.1883883,78.199,78.167,12.79312241]
[1771891306959,0.1883883,78.199,78.16,12.35611614]
[1771891307157,0.18509597,78.189,78.159,0.64189513]
[1771891307857,0.17862432,78.187,78.161,12.79394317]
[1771891308160,12.35611614,78.18,78.141,0.63843764]
[1771891308351,44.76390238,78.188,78.151,0.63843764]
[1771891310157,12.35611614,78.19,78.153,0.63843764]
[1771891310462,12.35611614,78.19,78.161,0.63843764]
[1771891311342,12.35611614,78.18,78.153,0.63843764]
[1771891312262,12.79115875,78.179,78.153,0.63843764]
[1771891312463,12.79115875,78.179,78.154,12.7952504]
[1771891312654,12.78952282,78.189,78.161,0.63843764]
[1771891313673,12.78952282,78.189,78.154,0.63843764]
[1771891314170,12.35611614,78.18,78.154,0.63843764]
[1771891314548,12.79115875,78.179,78.154,0.63843764]
[1771891317177,12.79115875,78.179,78.155,12.79508668]
[1771891318675,44.76905562,78.179,78.141,0.63843764]
[1771891319572,44.76905562,78.179,78.145,0.63843764]
[1771891320370,12.35611614,78.15,78.11,12.35611614]
[1771891320547,12.35611614,78.15,78.092,0.63843764]
[1771891320548,12.35611614,78.14,78.092,0.63843764]
[1771891320751,12.35611614,78.15,78.111,0.63843764]
[1771891320950,12.35611614,78.17,78.131,0.63843764]
[1771891321165,12.35611614,78.17,78.141,0.63843764]
[1771891321572,12.79443186,78.159,78.131,0.63843764]
[1771891321767,12.35611614,78.14,78.114,0.63843764]
[1771891323666,12.79770665,78.139,78.114,0.63843764]
[1771891324775,12.79606904,78.149,78.12,12.35611614]
[1771891324960,12.79606904,78.149,78.121,0.63843764]
[1771891325352,12.35611614,78.16,78.121,0.63843764]
[1771891326055,12.79443186,78.159,78.123,0.63843764]
[1771891326658,12.35611614,78.15,78.123,0.63843764]
[1771891328380,12.35611614,78.14,78.114,0.63843764]
[1771891329360,12.37927413,78.14,78.114,0.63843764]
[1771891330359,0.12564477,78.12,78.114,0.63843764]
[1771891330769,0.12564477,78.12,78.079,5.36086188]
[1771891330770,12.79639653,78.147,78.115,0.62832058]
[1771891330962,12.79639653,78.147,78.108,32.00693156]
[1771891330963,12.79639653,78.147,78.121,0.62832058]
[1771891331163,12.79455994,78.159,78.131,0.62832058]
[1771891331369,0.06103984,78.166,78.131,0.62832058]
[1771891331769,12.79312241,78.167,78.131,0.62832058]
[1771891332169,0.06103984,78.178,78.141,0.62832058]
[1771891332479,12.85008769,78.177,78.143,0.62832058]
[1771891333063,0.05619158,78.176,78.143,0.62832058]
[1771891333571,12.37927413,78.17,78.143,0.62832058]
[1771891334788,12.79279509,78.169,78.143,0.62832058]
[1771891335684,12.84424915,78.169,78.143,0.62832058]
[1771891335987,0.04912602,78.176,78.143,0.62832058]
[1771891336193,0.04912602,78.176,78.145,0.62832058]
[1771891336486,12.37927413,78.17,78.145,0.62832058]
[1771891337687,0.04682473,78.169,78.135,0.62832058]
[1771891337864,12.37927413,78.15,78.128,0.57561525]
[1771891338068,12.79606904,78.149,78.128,0.57561525]
[1771891338998,0.04007824,78.148,78.121,0.57561525]
[1771891340287,12.37927413,78.14,78.121,0.57561525]
[1771891340500,12.37927413,78.14,78.11,12.37927413]
[1771891340501,12.37927413,78.13,78.105,0.57561525]
[1771891341391,12.4128357,78.13,78.105,0.57561525]
[1771891341585,0.03356157,78.129,78.105,0.57561525]
[1771891341786,12.37927413,78.12,78.097,0.57561525]
[1771891342677,12.80098311,78.119,78.097,0.57561525]
[1771891342881,12.7983618,78.135,78.101,0.57561525]
[1771891343492,12.37927413,78.13,78.101,0.57561525]
[1771891343874,0.02726687,78.129,78.101,0.57561525]
[1771891344391,12.37927413,78.12,78.101,0.57561525]
[1771891345382,12.80098311,78.119,78.101,0.57561525]
[1771891349294,12.80038082,78.123,78.101,0.57561525]
[1771891349784,5.5476555,78.12,78.101,0.57561525]
[1771891351098,12.80098311,78.119,78.101,0.57561525]
[1771891355401,5.5476555,78.15,78.111,0.57561525]
[1771891355896,5.5476555,78.14,78.111,0.57561525]
[1771891357299,44.79197327,78.139,78.111,0.57561525]
[1771891361210,12.79770665,78.139,78.111,0.57561525]
[1771891361506,12.79770665,78.139,78.113,0.57561525]
[1771891365093,5.5476555,78.14,78.113,0.57561525]
[1771891366415,12.79770665,78.139,78.113,0.57561525]
[1771891367015,12.79770665,78.139,78.115,0.57561525]
[1771891368116,31.99039141,78.149,78.117,0.57561525]
[1771891368617,5.5476555,78.14,78.117,0.57561525]
[1771891369914,31.99039141,78.149,78.117,0.57561525]
[1771891370120,44.78646045,78.149,78.117,0.57561525]
[1771891370920,5.5476555,78.14,78.117,0.57561525]
[1771891371418,0.54481227,78.121,78.08,5.5476555]
[1771891371601,0.54481227,78.119,78.085,12.80654661]
[1771891371914,5.5476555,78.11,78.085,12.80654661]
[1771891372117,45.3488267,78.118,78.085,12.80654661]
[1771891373521,45.3488267,78.118,78.091,0.52201626]
[1771891375121,12.80147472,78.116,78.091,0.52201626]
[1771891377107,0.54481227,78.116,78.091,0.52201626]
[1771891380427,0.54079645,78.109,78.083,0.52201626]
[1771891380730,0.54079645,78.099,78.071,0.52201626]
[1771891380916,5.5476555,78.09,78.071,0.52201626]
[1771891381120,5.5476555,78.09,78.071,13.33086973]
[1771891381423,0.53945935,78.093,78.072,0.52201626]
[1771891381622,0.53945935,78.099,78.072,0.52201626]
[1771891382220,5.5476555,78.1,78.072,0.52201626]
[1771891382410,0.5381376,78.117,78.091,0.52201626]
[1771891382735,0.5381376,78.117,78.073,12.80852535]
[1771891382736,0.5381376,78.144,78.111,0.52201626]
[1771891383239,5.5476555,78.15,78.12,5.5476555]
[1771891383524,5.5476555,78.14,78.1,5.5476555]
[1771891383721,0.53683104,78.139,78.101,0.52201626]
[1771891383903,4.2293735,78.147,78.111,0.52201626]
[1771891384303,0.53553948,78.146,78.111,0.52201626]
[1771891384510,12.79672403,78.145,78.113,0.52201626]
[1771891385927,12.79672403,78.145,78.121,0.52201626]
[1771891386736,12.79606904,78.149,78.121,0.52201626]
[1771891387033,0.53175315,78.172,78.141,0.52201626]
[1771891388129,0.53175315,78.172,78.143,0.52201626]
[1771891388130,12.79246779,78.171,78.143,0.52201626]
[1771891388438,12.79246779,78.171,78.151,0.52201626]
[1771891389323,13.32176864,78.171,78.151,0.52201626]
[1771891390731,12.7905685,78.183,78.152,0.52201626]
[1771891391950,12.7905685,78.183,78.153,12.79541412]
[1771891392248,13.31629552,78.183,78.154,0.52201626]
[1771891393243,0.524563,78.179,78.154,0.52201626]
[1771891393844,0.52341236,78.169,78.141,0.52201626]
[1771891395338,0.52227493,78.167,78.141,0.52201626]
[1771891395646,0.54481227,78.149,78.12,5.5388083]
[1771891395850,0.54481227,78.149,78.11,5.5388083]
[1771891396252,0.28432314,78.166,78.11,5.5388083]
[1771891396253,0.54481227,78.139,78.11,5.5388083]
[1771891396549,0.54481227,78.139,78.1,5.5388083]
[1771891396747,0.54481227,78.129,78.1,5.5388083]
[1771891397433,0.54481227,78.129,78.066,3.69383402]
[1771891397434,0.54481227,78.127,78.09,5.5388083]
[1771891397639,0.54481227,78.127,78.091,0.52201626]
[1771891398644,0.54424504,78.125,78.091,0.52201626]
[1771891398854,0.54424504,78.119,78.091,0.52201626]
[1771891399155,0.54424504,78.109,78.082,0.49265657]
[1771891400559,13.34702749,78.109,78.084,0.49265657]
[1771891402159,3.69383402,78.127,78.101,0.50147981]
[1771891402361,63.97952655,78.15,78.085,44.82294934]
[1771891402362,5.5388083,78.15,78.111,0.50147981]
[1771891402735,3.69383402,78.147,78.111,0.50147981]
[1771891404140,12.79672403,78.145,78.113,0.50147981]
[1771891405643,12.7958219,78.151,78.121,0.50147981]
[1771891406444,13.28082736,78.159,78.123,0.50147981]
[1771891406743,12.79443186,78.159,78.131,0.50147981]
[1771891407742,44.78051151,78.159,78.131,0.50147981]
[1771891408654,12.79443186,78.159,78.131,0.50147981]
[1771891409463,12.79443186,78.159,78.133,0.50147981]
[1771891409960,12.79325777,78.167,78.141,0.50147981]
[1771891410168,12.79132236,78.178,78.151,0.50147981]
[1771891412346,12.79069239,78.182,78.152,0.50147981]
[1771891412548,0.48075423,78.197,78.161,0.50147981]
[1771891412745,12.78837792,78.196,78.163,0.50147981]
[1771891414272,0.47895905,78.189,78.151,0.50147981]
[1771891414473,0.47895905,78.179,78.151,0.50147981]
[1771891414852,0.47807689,78.177,78.151,0.50147981]
[1771891416167,44.76962827,78.178,78.151,0.50147981]
[1771891416168,12.35928228,78.17,78.151,0.50147981]
[1771891416369,12.83648714,78.17,78.132,0.50147981]
[1771891416566,0.47720486,78.169,78.132,0.50147981]
[1771891417072,12.79295875,78.168,78.134,0.50147981]
[1771891419378,12.79295875,78.168,78.136,0.50147981]
[1771891419549,0.47464842,78.167,78.136,0.50147981]
[1771891422069,0.47464842,78.167,78.138,0.50147981]
[1771891422367,0.47217906,78.186,78.151,0.50147981]
[1771891422758,3.69383402,78.196,78.161,0.50147981]
[1771891422956,3.69383402,78.196,78.171,0.50147981]
[1771891424369,12.78854146,78.195,78.171,0.50147981]
[1771891428156,44.75989512,78.195,78.171,0.50147981]
[1771891428970,0.46599759,78.194,78.171,0.50147981]
[1771891429368,12.78886856,78.193,78.171,0.50147981]
[1771891430886,12.78886856,78.193,78.173,0.48428665]
[1771891432388,31.96658703,78.207,78.173,0.48428665]
[1771891432389,0.46382291,78.199,78.173,0.48428665]
[1771891433185,25.14700606,78.2,78.162,0.48428665]
[1771891433186,0.46311461,78.189,78.162,0.48428665]
[1771891434776,0.46241444,78.187,78.162,0.48428665]
[1771891435278,0.46241444,78.187,78.163,0.48428665]
[1771891437092,12.79001355,78.186,78.163,0.48428665]
[1771891437891,0.45969326,78.2,78.171,0.48428665]
[1771891438192,4.15352728,78.206,78.171,0.48428665]
[1771891438573,0.45969326,78.205,78.171,0.48428665]
[1771891439489,12.78706971,78.204,78.171,13.27659812]
[1771891439693,12.78706971,78.204,78.172,0.48428665]
[1771891440882,12.78706971,78.204,78.174,0.48428665]
[1771891441497,13.24480304,78.204,78.174,0.48428665]
[1771891441998,0.45709497,78.203,78.174,0.48428665]
[1771891443612,12.78739674,78.202,78.174,0.48428665]
[1771891444000,12.78739674,78.202,78.176,0.48428665]
[1771891445114,13.24262028,78.202,78.176,0.48428665]
[1771891445690,0.45522354,78.199,78.176,0.48428665]
[1771891445905,0.45461401,78.189,78.161,0.48428665]
[1771891446312,5.53847395,78.18,78.161,0.48428665]
[1771891446498,0.45461401,78.185,78.161,0.48428665]
[1771891447597,12.79034073,78.184,78.161,0.48428665]
[1771891450708,12.78980298,78.188,78.163,0.48428665]
[1771891451813,13.24090403,78.188,78.163,0.48428665]
[1771891452017,0.45110105,78.187,78.163,0.48428665]
[1771891453316,0.45053887,78.179,78.155,0.48428665]
[1771891453500,0.45053887,78.169,78.149,0.48428665]
[1771891453698,0.45053887,78.169,78.144,0.48428665]
[1771891454320,5.53817432,78.17,78.13,5.53817432]
[1771891454321,0.44998314,78.167,78.13,5.53817432]
[1771891454503,0.50223289,78.159,78.131,12.79901703]
[1771891456205,0.50223289,78.157,78.132,0.48428665]
[1771891456406,0.50223289,78.157,78.134,0.48428665]
[1771891456612,12.79295875,78.168,78.151,0.48428665]
[1771891458117,12.79115875,78.179,78.151,0.48428665]
[1771891458326,12.79115875,78.179,78.161,0.50665738]
[1771891458920,0.47381481,78.187,78.163,0.50665738]
[1771891461117,5.53817432,78.17,78.141,12.7972404]
[1771891461306,0.47203533,78.169,78.142,0.50115695]
[1771891463627,0.47203533,78.176,78.142,0.50115695]
[1771891463816,12.78984997,78.187,78.161,0.50115695]
[1771891464017,12.78984997,78.187,78.17,5.53817432]
[1771891464216,12.78984997,78.187,78.169,0.50115695]
[1771891465428,0.47203533,78.186,78.159,0.50115695]
[1771891466032,0.47203533,78.184,78.16,0.50115695]
[1771891470036,0.47203533,78.182,78.16,0.50115695]
[1771891474843,0.47203533,78.196,78.162,0.50115695]
[1771891478942,0.47203533,78.194,78.162,0.50115695]
[1771891479237,0.47203533,78.194,78.164,0.50115695]
[1771891479435,12.78854146,78.195,78.171,0.50115695]
[1771891482438,0.47203533,78.209,78.163,0.50115695]
[1771891482642,0.47203533,78.189,78.16,12.79420431]
[1771891482843,0.47203533,78.189,78.161,0.50115695]
[1771891487427,0.47203533,78.169,78.103,0.50115695]
[1771891487625,0.28432314,78.187,78.161,0.50115695]
[1771891487626,0.47203533,78.187,78.161,0.50115695]
[1771891488645,0.49491509,78.179,78.155,0.48995313]
[1771891489533,0.49491509,78.169,78.141,0.48995313]
[1771891490534,0.49491509,78.167,78.141,0.48995313]
[1771891490735,0.49491509,78.159,78.141,0.48995313]
[1771891494158,13.28936309,78.159,78.141,0.48995313]
[1771891494651,0.49491509,78.158,78.141,0.48995313]
[1771891495248,0.49491509,78.158,78.124,0.48995313]
[1771891495449,44.78052765,78.159,78.118,0.48995313]
[1771891495450,0.49491509,78.139,78.118,0.48995313]
[1771891496147,0.49491509,78.139,78.105,32.00780719]
[1771891496148,0.49491509,78.139,78.119,12.80098311]
[1771891496353,0.49491509,78.139,78.12,0.48995313]
[1771891496554,0.49491509,78.187,78.131,0.48995313]
[1771891496857,0.49491509,78.149,78.131,0.48995313]
[1771891498344,0.49491509,78.147,78.126,0.48995313]
[1771891498848,0.49491509,78.147,78.111,12.80229417]
[1771891499032,5.53817432,78.14,78.112,0.48995313]
[1771891499235,6.03308941,78.14,78.112,0.48995313]
[1771891499653,18.83070397,78.14,78.113,12.80196638]
[1771891499849,0.49491509,78.139,78.11,0.48995313]
[1771891500234,5.53817432,78.13,78.11,0.48995313]
[1771891500439,0.49491509,78.129,78.11,0.48995313]
[1771891500937,0.49491509,78.129,78.105,0.48995313]
[1771891501640,0.49491509,78.127,78.105,0.48995313]
[1771891501840,0.49491509,78.119,78.096,0.48995313]
[1771891502056,13.29442358,78.128,78.096,0.48995313]
[1771891502260,0.49491509,78.127,78.096,0.48995313]
[1771891504745,12.79950849,78.128,78.101,0.48995313]
[1771891505667,12.79902024,78.131,78.101,0.48995313]
[1771891505965,0.49491509,78.13,78.101,0.48995313]
[1771891506156,0.49491509,78.129,78.101,0.48995313]
[1771891508948,0.67496341,78.105,78.102,0.48995313]
[1771891511064,5.53817432,78.12,78.102,0.48995313]
[1771891511946,12.80023774,78.124,78.102,0.48995313]
[1771891513070,12.79849821,78.135,78.104,0.48995313]
[1771891513368,0.49491509,78.129,78.104,0.48995313]
[1771891513571,0.49491509,78.109,78.087,13.29604735]
[1771891513762,0.49491509,78.109,78.088,0.48995313]
[1771891514074,5.53817432,78.1,78.088,0.48995313]
[1771891514463,5.53817432,78.1,78.08,13.00723968]
[1771891514464,0.49491509,78.098,78.08,0.2]
[1771891515764,5.55154113,78.09,78.08,0.2]
[1771891521879,0.46392061,78.088,78.07,0.2]
[1771891522072,0.46392061,78.088,78.07,0.66600186]
[1771891522269,5.55154113,78.09,78.071,12.80885347]
[1771891522579,0.46392061,78.098,78.072,0.46600186]
[1771891523266,13.26838534,78.098,78.072,0.46600186]
[1771891524083,0.46392061,78.097,78.072,0.46600186]
[1771891524779,12.80475312,78.096,78.072,0.46600186]
[1771891525175,13.26867373,78.096,78.072,0.46600186]
[1771891525378,0.46392061,78.095,78.072,0.46600186]
[1771891527882,0.46392061,78.093,78.072,0.46600186]
[1771891528467,0.46392061,78.093,78.07,0.2]
[1771891528784,12.80508105,78.094,78.07,0.2]
[1771891528785,0.46392061,78.089,78.07,0.2]
[1771891530281,0.46392061,78.088,78.07,0.2]
[1771891531071,0.46392061,78.088,78.071,12.80885347]
[1771891531268,0.46392061,78.093,78.072,0.46600186]
[1771891532771,0.46392061,78.091,78.072,0.46600186]
[1771891534974,12.80493113,78.095,78.074,0.46600186]
[1771891535385,13.26885174,78.095,78.074,0.46600186]
[1771891535771,32.00414522,78.115,78.075,0.46600186]
[1771891535976,0.46392061,78.113,78.081,0.46600186]
[1771891536888,0.46392061,78.109,78.081,0.46600186]
[1771891537590,44.80745595,78.112,78.07,0.66600186]
[1771891537591,0.46392061,78.099,78.07,0.66600186]
[1771891537779,0.46392061,78.099,78.072,0.46600186]
[1771891542900,0.46392061,78.099,78.074,0.46600186]
[1771891543285,12.80349941,78.104,78.074,0.46600186]
[1771891544584,0.46392061,78.103,78.074,0.46600186]
[1771891545299,0.46392061,78.099,78.076,0.46600186]
[1771891546007,0.46392061,78.099,78.075,12.80819724]
[1771891546381,0.46392061,78.099,78.07,13.00886519]
[1771891546898,0.46392061,78.099,78.071,0.46600186]
[1771891547304,0.46392061,78.099,78.073,0.46600186]
[1771891548093,0.47113037,78.105,78.073,0.46600186]
[1771891551011,0.47113037,78.099,78.075,0.45956346]
[1771891551307,0.47113037,78.099,78.074,13.26792475]
[1771891551493,0.47113037,78.099,78.075,0.45956346]
[1771891553403,0.47113037,78.107,78.077,0.45956346]
[1771891554304,0.47113037,78.107,78.079,0.45956346]
[1771891555502,0.47113037,78.107,78.08,12.80737704]
[1771891555708,0.47113037,78.107,78.081,0.45956346]
[1771891558393,0.47113037,78.107,78.08,12.80737704]
[1771891558601,0.47113037,78.107,78.08,13.2669405]
[1771891559102,0.47113037,78.107,78.082,12.80704899]
[1771891559299,0.47113037,78.107,78.082,13.26661245]
[1771891559609,0.47113037,78.107,78.083,0.45956346]
[1771891560113,12.80163574,78.116,78.083,0.45956346]
[1771891560114,0.47113037,78.115,78.083,0.45956346]
[1771891561314,5.55154113,78.12,78.085,0.45956346]
[1771891561315,0.47113037,78.113,78.085,0.45956346]
[1771891561494,5.55154113,78.11,78.085,0.45956346]
[1771891561696,0.47113037,78.109,78.085,0.45956346]
[1771891563320,0.47113037,78.109,78.086,13.26595641]
[1771891563611,6.69266316,78.128,78.07,0.2]
[1771891563612,0.47113037,78.099,78.07,0.2]
[1771891563811,0.47113037,78.089,78.07,0.2]
[1771891566410,0.47113037,78.089,78.071,12.80885347]
[1771891566618,0.47113037,78.1,78.072,0.45956346]
[1771891567509,0.47113037,78.1,78.073,12.80852535]
[1771891567703,0.47113037,78.1,78.074,0.45956346]
[1771891568217,0.47113037,78.114,78.082,0.45956346]
[1771891568418,0.47113037,78.121,78.091,0.45956346]
[1771891568612,103.9,78.159,78.091,0.45956346]
[1771891568613,0.47113037,78.119,78.091,0.45956346]
[1771891569199,13.27211348,78.119,78.091,0.45956346]
[1771891569493,0.47113037,78.118,78.091,0.45956346]
[1771891570427,0.47113037,78.118,78.093,0.45956346]
[1771891572535,3.69383402,78.147,78.041,51.25475529]
[1771891572536,0.47113037,78.109,78.041,51.25475529]
[1771891572704,0.47113037,78.099,78.071,0.45956346]
[1771891573516,0.47113037,78.099,78.072,0.45956346]
[1771891573911,0.47113037,78.105,78.072,0.45956346]
[1771891574728,5.55154113,78.16,78.07,5.75154113]
[1771891574729,0.47113037,78.112,78.082,0.45956346]
[1771891574940,0.47113037,78.109,78.074,0.45956346]
[1771891575221,0.47113037,78.109,78.073,12.80852535]
[1771891575222,0.47113037,78.109,78.082,0.45956346]
[1771891577226,0.47113037,78.109,78.084,0.45956346]
[1771891578331,0.47113037,78.109,78.085,12.80655695]
[1771891578508,0.47113037,78.109,78.085,13.2848211]